bitfinex-derivatives/quotes_ETHF0:USTF0_20260120
["timestamp","ask_amount","ask_price","bid_price","bid_amount"]
[1768896309751,1.3053432,3120.1,3118.7,0.52734963]
[1768896309953,1.3053432,3120.0,3118.7,0.52734963]
[1768896310250,1.3053432,3119.9,3118.7,0.52734963]
[1768896310553,0.88734562,3119.8,3118.8,0.49089112]
[1768896310743,1.1464007,3120.3,3118.7,0.52734963]
[1768896310946,0.41798594,3120.2,3118.7,0.52734963]
[1768896311146,0.41798594,3120.1,3118.3,0.68784963]
[1768896311440,1.30530881,3120.0,3118.3,0.68784963]
[1768896311646,1.30530881,3119.9,3118.3,1.17874075]
[1768896311946,1.30530881,3119.8,3118.3,1.17874075]
[1768896312251,1.3054902,3119.7,3118.3,0.52734963]
[1768896312448,1.30545258,3119.6,3118.0,0.00239964]
[1768896312749,1.30545258,3119.5,3118.0,0.00239964]
[1768896312949,1.30545258,3119.4,3118.0,0.00239964]
[1768896313144,0.88732287,3119.3,3118.0,0.00239964]
[1768896313339,0.88732287,3119.2,3118.0,0.00239964]
[1768896313550,1.3068307,3119.7,3118.0,0.00239964]
[1768896313747,1.30593717,3119.6,3118.0,0.00239964]
[1768896314050,1.30593717,3119.5,3118.0,0.00239964]
[1768896314245,1.30593717,3119.4,3118.0,0.00239964]
[1768896314452,1.30593717,3119.3,3118.0,0.00239964]
[1768896314646,0.88774297,3119.2,3118.0,0.00239964]
[1768896314951,1.82057934,3119.7,3118.0,0.00239964]
[1768896315150,1.30633249,3119.6,3118.0,0.00239964]
[1768896315343,1.30633249,3119.5,3118.0,0.00239964]
[1768896315538,1.30633249,3119.4,3118.0,0.00239964]
[1768896315753,1.30633249,3119.3,3118.0,0.00239964]
[1768896315951,0.88800646,3119.2,3118.0,0.00239964]
[1768896316151,0.88882228,3119.1,3118.2,0.49089112]
[1768896316352,1.82057934,3119.7,3118.0,0.00239964]
[1768896316651,1.3074188,3119.6,3118.0,0.52974927]
[1768896316854,1.3074188,3119.5,3118.0,0.52974927]
[1768896317049,1.3074188,3119.4,3118.2,0.52734963]
[1768896317253,1.3074188,3119.3,3118.2,0.52734963]
[1768896317453,1.3074188,3119.2,3118.2,0.52734963]
[1768896317756,0.88891252,3119.1,3118.2,0.52734963]
[1768896317955,1.3068307,3119.7,3118.2,0.52734963]
[1768896318154,1.30497074,3119.6,3118.2,0.52734963]
[1768896318450,1.30497074,3119.5,3118.2,0.52734963]
[1768896318655,1.30497074,3119.4,3118.2,1.01824075]
[1768896318843,1.30497074,3119.3,3118.2,0.52734963]
[1768896319047,0.88890936,3119.2,3118.2,0.52734963]
[1768896319243,1.3068307,3119.7,3118.2,0.52734963]
[1768896319456,1.30474816,3119.6,3118.2,0.52734963]
[1768896319754,1.30474816,3119.5,3118.3,0.49089112]
[1768896319955,1.30474816,3119.4,3118.2,1.01824075]
[1768896320156,1.30474816,3119.3,3118.2,1.01824075]
[1768896320455,0.8887641,3119.2,3118.3,1.01824075]
[1768896320653,1.3068307,3119.7,3118.3,0.52734963]
[1768896320848,1.30535389,3119.6,3118.3,1.01824075]
[1768896321050,1.30535389,3119.5,3118.3,1.01824075]
[1768896321251,1.30535389,3119.4,3118.3,1.01824075]
[1768896321452,1.30535389,3119.3,3118.3,0.49089112]
[1768896321654,1.30535389,3119.2,3118.3,0.49089112]
[1768896321855,0.88917595,3119.1,3118.4,0.49089112]
[1768896322054,1.1464007,3119.5,3118.3,0.49089112]
[1768896322256,0.41618915,3119.4,3118.3,0.49089112]
[1768896322452,1.30536405,3119.3,3118.4,0.49089112]
[1768896322655,1.30536405,3119.2,3118.3,0.49089112]
[1768896322856,1.1464007,3119.5,3118.3,0.49089112]
[1768896323058,0.41587933,3119.4,3118.4,0.49089112]
[1768896323259,0.88929179,3119.3,3118.3,1.10873201]
[1768896323458,0.88929179,3119.2,3118.3,1.10873201]
[1768896323758,1.1464007,3119.6,3118.4,0.49089112]
[1768896323959,2.03567024,3119.6,3118.4,0.49089112]
[1768896324156,1.30513563,3119.5,3118.5,0.49089112]
[1768896324357,1.30513563,3119.4,3118.5,1.10873201]
[1768896324559,0.88926954,3119.3,3118.6,0.49089112]
[1768896324753,1.3068307,3119.7,3118.6,0.49089112]
[1768896324952,1.30509685,3119.6,3118.6,0.49089112]
[1768896325149,1.30509685,3119.5,3118.6,0.49089112]
[1768896325352,1.1464007,3120.0,3118.9,0.61784089]
[1768896325551,1.30523508,3119.9,3118.9,0.61784089]
[1768896325752,1.30523508,3119.8,3118.9,1.10873201]
[1768896326053,1.30523508,3119.7,3118.9,1.10873201]
[1768896326363,1.1464007,3120.1,3118.9,0.49089112]
[1768896326364,0.88933979,3119.6,3118.9,0.49089112]
[1768896326552,2.9364007,3120.2,3119.0,0.49089112]
[1768896326747,1.30512503,3120.1,3118.7,0.49089112]
[1768896326964,1.30512503,3120.0,3118.7,0.49089112]
[1768896327260,1.30512503,3119.9,3118.7,0.49089112]
[1768896327451,1.30512503,3119.8,3118.0,0.62024053]
[1768896327651,1.30512503,3119.7,3118.1,0.49089112]
[1768896327852,1.30233632,3119.6,3118.2,0.49089112]
[1768896328050,1.30233632,3119.5,3118.2,0.49089112]
[1768896328254,1.30233632,3119.4,3118.3,0.49089112]
[1768896328462,1.30233632,3119.3,3118.3,0.49089112]
[1768896328662,0.88926945,3119.2,3118.4,0.49089112]
[1768896328866,1.1464007,3119.8,3118.3,0.49089112]
[1768896329059,0.41307864,3119.7,3118.4,0.49089112]
[1768896329362,1.30221268,3119.6,3118.3,0.49089112]
[1768896329562,1.30221268,3119.5,3118.3,0.49089112]
[1768896329761,1.30221268,3119.4,3118.4,0.49089112]
[1768896330055,1.30221268,3119.3,3118.3,0.49089112]
[1768896330256,0.88913404,3119.2,3118.2,0.49089112]
[1768896330453,1.76286092,3119.7,3118.2,0.49089112]
[1768896330658,1.30219903,3119.6,3118.4,0.49089112]
[1768896330857,1.30219903,3119.5,3118.3,0.49089112]
[1768896331058,1.30219903,3119.4,3118.3,0.49089112]
[1768896331260,1.30219903,3119.3,3118.4,0.49089112]
[1768896331459,0.88911945,3119.2,3118.3,0.49089112]
[1768896331656,0.88911945,3119.2,3118.5,0.49089112]
[1768896331861,1.76286092,3119.7,3118.5,0.49089112]
[1768896332064,1.30239447,3119.6,3118.0,0.62024053]
[1768896332267,1.30239447,3119.5,3118.3,0.49089112]
[1768896332463,1.30239447,3119.4,3118.3,0.49089112]
[1768896332655,1.30239447,3119.3,3118.0,0.62024053]
[1768896332852,1.76286092,3119.7,3118.3,0.49089112]
[1768896332853,0.88925433,3119.2,3118.3,0.49089112]
[1768896333063,0.88925433,3119.1,3118.3,0.49089112]
[1768896333255,0.89303207,3119.0,3118.0,0.00239964]
[1768896333456,1.30612304,3118.9,3118.0,0.00239964]
[1768896333655,1.30609132,3118.8,3118.0,0.00239964]
[1768896333860,0.89296451,3118.7,3118.0,0.00239964]
[1768896334065,1.1464007,3119.2,3118.0,0.62024053]
[1768896334365,0.41307075,3119.1,3118.0,0.62024053]
[1768896334662,1.1464007,3119.3,3118.0,0.62024053]
[1768896334663,1.30598233,3119.0,3118.0,0.62024053]
[1768896334858,1.30598233,3118.9,3118.0,0.62024053]
[1768896335060,0.89291158,3118.8,3118.0,0.62024053]
[1768896335263,1.1464007,3119.3,3118.0,0.62024053]
[1768896335461,1.1464007,3119.1,3118.0,0.62024053]
[1768896335658,1.55934156,3119.0,3118.0,0.62024053]
[1768896335869,0.41294086,3118.9,3118.0,0.00239964]
[1768896336061,0.41294086,3118.8,3117.5,0.61784089]
[1768896336263,1.3054417,3118.7,3117.5,0.61784089]
[1768896336463,0.89250084,3118.6,3117.5,0.61784089]
[1768896336664,1.1464007,3119.1,3117.5,0.61784089]
[1768896336865,0.4124613,3119.0,3117.5,0.61784089]
[1768896337070,1.304707,3118.9,3117.5,0.62072625]
[1768896337365,0.8922457,3118.8,3117.5,0.62072625]
[1768896337558,0.00291864,3119.0,3117.5,0.62072625]
[1768896337761,1.30455824,3118.9,3117.5,0.62072625]
[1768896337960,0.89215246,3118.8,3117.5,0.62072625]
[1768896338155,0.00291864,3119.0,3117.5,0.78126625]
[1768896338361,1.30455861,3118.9,3117.6,0.61784089]
[1768896338667,0.89214943,3118.8,3117.6,0.61784089]
[1768896338866,0.00291864,3119.0,3117.6,0.61784089]
[1768896339059,1.30457892,3118.9,3117.6,0.61784089]
[1768896339264,0.89216873,3118.8,3117.6,0.61784089]
[1768896339461,0.00291864,3119.0,3117.6,0.61784089]
[1768896339668,0.89222891,3118.9,3117.6,0.61784089]
[1768896339967,0.00291864,3119.0,3117.8,0.61784089]
[1768896340471,0.00291864,3119.0,3118.0,0.61784089]
[1768896340968,1.1464007,3119.7,3118.2,0.61784089]
[1768896341168,0.41253953,3119.6,3118.2,0.61784089]
[1768896341356,1.3049912,3119.5,3118.2,0.61784089]
[1768896341556,1.3049912,3119.4,3118.2,0.61784089]
[1768896341762,0.89245167,3119.3,3118.2,0.61784089]
[1768896341962,0.00319935,3119.4,3118.2,0.61784089]
[1768896342257,1.1464007,3120.1,3118.4,0.61784089]
[1768896342457,0.41158991,3120.0,3118.6,0.61784089]
[1768896342657,0.41158991,3119.9,3118.6,0.61784089]
[1768896342861,0.8926198,3119.8,3118.7,0.69786172]
[1768896343064,1.1464007,3120.4,3118.7,0.85834172]
[1768896343270,0.41202554,3120.3,3118.9,0.85833172]
[1768896343466,0.89388423,3120.3,3119.1,0.69786172]
[1768896343670,0.0031904,3120.4,3119.1,0.85832172]
[1768896344770,0.0031904,3120.4,3119.3,0.69786172]
[1768896345162,1.1464007,3121.3,3119.5,0.85830172]
[1768896345367,1.30380111,3121.2,3119.7,0.69786172]
[1768896345673,1.1464007,3121.6,3119.7,0.85828172]
[1768896345862,1.30292785,3121.5,3119.7,0.69786172]
[1768896346062,0.00283476,3121.5,3119.7,0.70176839]
[1768896347266,0.00283476,3121.5,3120.1,0.69786172]
[1768896347461,0.00283476,3121.5,3119.7,0.70176839]
[1768896347666,0.88943398,3121.4,3119.7,0.70176839]
[1768896347866,0.88943398,3121.3,3119.7,0.70176839]
[1768896348168,0.00283476,3121.5,3119.7,0.70176839]
[1768896348375,0.88943435,3121.4,3119.7,0.70176839]
[1768896348677,0.88943435,3121.3,3119.7,0.70176839]
[1768896348883,0.00283476,3121.5,3119.7,0.70176839]
[1768896349184,0.88900484,3121.4,3119.7,0.70176839]
[1768896349385,0.00283476,3121.5,3119.7,0.70176839]
[1768896349585,0.88843762,3121.4,3119.7,0.70176839]
[1768896349786,0.00283476,3121.5,3119.7,0.70176839]
[1768896349985,0.88842724,3121.4,3119.7,0.70176839]
[1768896350184,0.00283476,3121.5,3119.7,0.70176839]
[1768896350385,0.88822468,3121.4,3119.7,0.70176839]
[1768896350584,0.00283476,3121.5,3119.7,0.70176839]
[1768896350787,0.88818019,3121.4,3119.7,0.70176839]
[1768896350978,0.00283476,3121.5,3119.7,0.70176839]
[1768896351178,0.61994876,3121.3,3119.7,0.00390667]
[1768896351378,0.88792486,3121.2,3119.7,0.00390667]
[1768896351581,0.61994876,3121.3,3119.7,0.00390667]
[1768896351582,0.88791215,3121.1,3119.7,0.00390667]
[1768896351774,0.61994876,3121.3,3119.7,0.00390667]
[1768896351981,1.04824356,3121.2,3119.7,0.00390667]
[1768896352281,0.88789356,3121.1,3119.7,0.00390667]
[1768896352483,0.88789356,3121.0,3119.7,0.00390667]
[1768896352685,0.63139355,3121.2,3119.7,0.00390667]
[1768896352885,0.88771194,3121.1,3119.7,0.00390667]
[1768896353080,0.88771194,3121.0,3119.7,0.00390667]
[1768896353285,0.64329354,3121.1,3119.7,0.00390667]
[1768896353491,1.29422147,3121.0,3119.7,0.00390667]
[1768896353692,0.88762759,3120.9,3119.7,0.00390667]
[1768896353885,0.88762759,3120.8,3119.7,0.00390667]
[1768896354194,0.88752093,3120.7,3119.7,0.00390667]
[1768896354490,0.48293354,3121.0,3119.7,0.00390667]
[1768896354682,1.45446821,3120.9,3119.7,0.00390667]
[1768896354879,0.88752496,3120.8,3119.7,0.00390667]
[1768896355491,1.04789496,3120.8,3119.7,0.00390667]
[1768896355689,0.88752496,3120.7,3119.7,0.00390667]
[1768896355889,0.16037,3120.8,3119.7,0.00390667]
[1768896356091,0.88751986,3120.7,3119.7,0.00390667]
[1768896356388,0.16037,3120.8,3119.7,0.00390667]
[1768896356582,0.88730307,3120.7,3119.7,0.00390667]
[1768896356786,0.16037,3120.8,3119.7,0.00390667]
[1768896356987,0.88730036,3120.7,3119.7,0.00390667]
[1768896357186,0.16037,3120.8,3119.7,0.00390667]
[1768896357492,1.04765281,3120.7,3119.7,0.00390667]
[1768896357685,0.16038,3120.7,3119.7,0.00390667]
[1768896359391,1.1464007,3121.1,3119.8,0.73694047]
[1768896359693,0.00283476,3121.5,3120.2,0.73694047]
[1768896375901,1.1464007,3122.0,3120.2,0.73694047]
[1768896376095,0.8916133,3121.9,3120.4,0.89733047]
[1768896376295,1.1464007,3122.3,3120.4,0.89733047]
[1768896376497,0.40143721,3122.2,3120.4,0.89733047]
[1768896376702,0.89153699,3122.1,3120.9,0.73694047]
[1768896376902,1.1464007,3122.9,3121.2,0.73694047]
[1768896377202,0.89176483,3122.8,3121.2,0.89729047]
[1768896377403,1.1464007,3123.2,3121.2,0.89729047]
[1768896377592,0.40127373,3123.1,3121.2,0.89729047]
[1768896377793,1.54767443,3123.0,3121.2,0.89729047]
[1768896377990,1.45268502,3122.9,3121.2,0.73694047]
[1768896378195,1.29242502,3122.8,3121.2,0.73694047]
[1768896378508,0.89115129,3122.7,3121.2,0.73694047]
[1768896378700,0.89115129,3122.6,3121.2,0.73694047]
[1768896378900,0.89115129,3122.5,3121.2,0.73694047]
[1768896379096,0.89115129,3122.4,3120.7,0.73694047]
[1768896379401,0.89115129,3122.3,3120.7,0.73694047]
[1768896379702,1.1464007,3122.7,3120.7,0.73694047]
[1768896379901,0.39030944,3122.6,3120.7,0.73694047]
[1768896380202,1.28094529,3122.5,3120.7,0.73694047]
[1768896380398,0.89063585,3122.4,3120.7,0.73694047]
[1768896380599,0.89063585,3122.3,3120.7,0.73694047]
[1768896380802,1.1464007,3122.7,3120.7,0.73694047]
[1768896381005,0.39022586,3122.6,3120.7,0.73694047]
[1768896381205,1.2806686,3122.5,3120.7,0.73694047]
[1768896381406,1.1464007,3122.7,3120.7,0.73694047]
[1768896381407,0.89044274,3122.4,3120.7,0.73694047]
[1768896381702,0.89044274,3122.3,3120.7,0.73694047]
[1768896381907,1.1464007,3122.7,3120.7,0.73694047]
[1768896382109,0.38995722,3122.6,3120.7,0.73694047]
[1768896382414,0.88985015,3122.5,3120.7,0.73694047]
[1768896382604,0.88985015,3122.4,3120.7,0.73694047]
[1768896382805,0.16027,3122.7,3120.7,0.73694047]
[1768896383006,0.88970601,3122.6,3120.7,0.73694047]
[1768896383205,0.88970601,3122.5,3120.7,0.73694047]
[1768896383408,0.88970601,3122.4,3120.7,0.73694047]
[1768896383606,0.16027,3122.7,3120.8,0.16037]
[1768896383807,0.88968072,3122.6,3120.9,0.76518546]
[1768896384008,0.88968072,3122.5,3120.9,0.76518546]
[1768896384310,0.88968072,3122.4,3120.9,0.76518546]
[1768896384503,0.16027,3122.7,3120.9,0.76518546]
[1768896384705,0.88991197,3122.6,3120.9,0.76518546]
[1768896385003,0.88991197,3122.5,3120.9,0.76518546]
[1768896385203,0.88991197,3122.4,3120.9,0.76518546]
[1768896385407,0.16027,3122.7,3120.0,2.86349713]
[1768896385608,0.00323414,3123.0,3119.9,3.0416332]
[1768896385609,0.78033375,3121.1,3119.9,3.0416332]
[1768896385811,0.78033375,3120.6,3118.1,0.16051]
[1768896386008,0.89026544,3120.5,3118.1,0.16051]
[1768896386317,0.89026544,3120.4,3118.1,0.16051]
[1768896386509,0.89026544,3120.3,3118.1,0.16051]
[1768896386809,0.78033375,3120.1,3118.1,0.00392484]
[1768896387013,0.88946199,3120.0,3118.1,0.00392484]
[1768896387213,0.78033375,3120.1,3118.1,0.00392484]
[1768896387415,0.88894392,3120.0,3118.2,0.76518546]
[1768896387714,0.00309248,3120.3,3118.7,0.76518546]
[1768896389206,0.00309248,3120.3,3118.9,0.76518546]
[1768896389712,0.00309248,3120.3,3119.1,0.76518546]
[1768896391610,0.16034,3121.4,3119.1,0.76518546]
[1768896391813,0.88897304,3121.3,3119.3,0.76518546]
[1768896392008,0.88897304,3121.2,3119.4,7.42218546]
[1768896392216,0.16034,3121.4,3119.6,0.76518546]
[1768896392508,0.78033375,3121.6,3119.6,0.92561546]
[1768896392710,0.0035517,3121.6,3119.8,0.92560546]
[1768896392914,0.0035517,3121.6,3120.0,0.76518546]
[1768896393113,0.0035517,3121.6,3120.0,0.92559546]
[1768896393712,0.0035517,3121.6,3120.1,7.42018546]
[1768896393917,0.78388545,3121.6,3119.9,3.207]
[1768896394614,0.78388545,3121.6,3119.9,3.97218546]
[1768896395022,0.0035517,3121.6,3120.0,0.76518546]
[1768896395911,0.0035517,3121.6,3120.1,6.657]
[1768896397228,0.0035517,3121.6,3120.1,7.42218546]
[1768896398218,0.0035517,3121.6,3120.2,0.76518546]
[1768896399522,0.0035517,3121.6,3120.3,6.653]
[1768896399725,0.0035517,3121.6,3120.3,6.65684497]
[1768896400222,0.0035517,3121.6,3120.3,7.42203043]
[1768896402317,0.0035517,3121.6,3120.3,0.76903043]
[1768896402619,0.0035517,3121.6,3120.4,6.651]
[1768896402923,0.71977394,3121.6,3120.3,0.00384497]
[1768896403511,0.71622224,3121.4,3120.3,0.00384497]
[1768896403821,2.00141109,3121.3,3120.3,0.00384497]
[1768896404017,1.61299371,3121.2,3120.3,0.00384497]
[1768896404224,0.89677147,3121.1,3120.3,0.00384497]
[1768896404410,0.71622224,3121.2,3120.3,0.00384497]
[1768896404615,0.89665195,3121.1,3120.3,0.00384497]
[1768896404815,0.71622224,3121.2,3120.3,0.00384497]
[1768896405124,0.89666159,3121.1,3120.3,0.00384497]
[1768896405325,0.71622224,3121.2,3120.3,0.00384497]
[1768896405526,0.89657356,3121.1,3120.3,0.00384497]
[1768896405723,0.16034,3121.4,3120.3,0.00384497]
[1768896405923,1.28492871,3121.3,3120.3,0.00384497]
[1768896406124,0.89661421,3121.2,3120.3,0.00384497]
[1768896406423,0.16034,3121.4,3120.3,0.00384497]
[1768896406726,0.89659358,3121.3,3120.3,0.00384497]
[1768896406926,0.89659358,3121.2,3120.3,0.00384497]
[1768896407122,0.87656224,3121.4,3120.3,0.00384497]
[1768896407423,1.28536227,3121.3,3120.3,0.00384497]
[1768896407623,0.89691208,3121.2,3120.3,0.00384497]
[1768896407825,0.87656224,3121.4,3120.3,0.00384497]
[1768896408124,1.28536725,3121.3,3120.3,0.00384497]
[1768896408326,0.89691018,3121.2,3120.3,0.00384497]
[1768896408625,0.87656224,3121.4,3120.3,0.00384497]
[1768896408813,1.28588452,3121.3,3120.3,0.00384497]
[1768896409124,0.89725477,3121.2,3120.3,0.00384497]
[1768896409326,0.89725477,3121.1,3120.3,0.00384497]
[1768896409517,0.87656224,3121.4,3120.3,0.00384497]
[1768896409825,1.28612311,3121.3,3120.3,0.00384497]
[1768896410026,0.89739834,3121.2,3120.3,0.00384497]
[1768896410224,0.89739834,3121.1,3120.3,0.00384497]
[1768896410424,0.87656224,3121.4,3120.3,0.00384497]
[1768896410625,0.38882721,3121.3,3120.3,0.00384497]
[1768896410825,1.28639818,3121.2,3120.3,0.00384497]
[1768896411021,0.89757097,3121.1,3120.3,0.00384497]
[1768896411220,0.8977419,3121.0,3120.3,0.00384497]
[1768896411522,0.16034,3121.4,3120.3,0.00384497]
[1768896411725,1.1499245,3121.6,3120.3,0.71419341]
[1768896411726,0.89780563,3121.3,3120.3,0.71419341]
[1768896411918,0.0035517,3121.6,3120.3,0.71419341]
[1768896414227,0.89891894,3121.5,3120.3,0.71419341]
[1768896414427,0.0035517,3121.6,3120.3,0.71419341]
[1768896414628,0.89891058,3121.5,3120.3,0.71419341]
[1768896414822,0.0035517,3121.6,3120.3,0.71419341]
[1768896415022,0.89891053,3121.5,3120.3,0.71419341]
[1768896415223,0.0035517,3121.6,3120.3,0.71419341]
[1768896415422,0.89932454,3121.5,3120.3,0.71419341]
[1768896415623,0.0035517,3121.6,3120.3,0.71419341]
[1768896415823,0.89936131,3121.5,3120.3,0.71419341]
[1768896416025,0.0035517,3121.6,3120.3,0.71419341]
[1768896416224,0.89936142,3121.5,3120.3,0.71419341]
[1768896416426,0.0035517,3121.6,3120.3,0.71419341]
[1768896416626,0.89958707,3121.5,3120.3,0.71419341]
[1768896416828,0.0035517,3121.6,3120.3,0.71419341]
[1768896417026,0.89959786,3121.5,3120.3,0.71419341]
[1768896417332,0.90025619,3121.4,3120.3,0.71419341]
[1768896417632,0.0035517,3121.6,3120.3,0.71419341]
[1768896417835,0.90025634,3121.5,3120.3,0.71419341]
[1768896418138,0.90025634,3121.4,3120.3,0.71419341]
[1768896418434,0.90410525,3121.3,3120.3,0.71419341]
[1768896418634,0.0035517,3121.6,3120.3,0.71419341]
[1768896418936,0.90410525,3121.5,3120.3,0.71419341]
[1768896419129,0.90410525,3121.4,3120.3,0.71419341]
[1768896419322,0.90410525,3121.3,3120.3,0.71419341]
[1768896419521,0.0035517,3121.6,3120.3,0.71419341]
[1768896419727,0.24460078,3121.5,3120.6,0.61556543]
[1768896419936,0.0035517,3121.6,3120.6,3.207]
[1768896420121,0.0035517,3121.6,3120.5,0.16038]
[1768896420325,0.0035517,3121.6,3120.5,3.36738]
[1768896424136,0.0035517,3121.6,3120.5,6.79138]
[1768896424738,0.0035517,3121.6,3120.5,0.16038]
[1768896426039,0.0035517,3121.6,3120.3,0.00384497]
[1768896426440,0.62215154,3121.6,3120.3,0.00384497]
[1768896428542,0.0035517,3121.6,3120.3,0.00384497]
[1768896429342,0.0035517,3121.6,3120.4,0.77595543]
[1768896429746,0.0035517,3121.6,3120.5,6.626]
[1768896430637,0.0035517,3121.6,3120.4,0.16039]
[1768896430842,0.0035517,3121.6,3120.5,6.625]
[1768896431042,0.0035517,3121.6,3120.5,6.78538]
[1768896431240,0.0035517,3121.6,3120.5,7.40094543]
[1768896431542,0.0035517,3121.6,3120.7,0.16037]
[1768896431742,1.1463728,3122.6,3120.9,0.61556543]
[1768896431942,0.61859984,3122.4,3121.0,6.624]
[1768896432239,0.8956987,3122.3,3121.0,6.624]
[1768896432641,0.8956987,3122.3,3121.1,0.61556543]
[1768896432642,0.00345501,3122.3,3121.1,0.61556543]
[1768896434047,1.76497264,3123.2,3121.3,0.61556543]
[1768896434244,0.89723922,3123.1,3121.3,0.61556543]
[1768896434440,0.89723922,3123.0,3121.3,0.61556543]
[1768896434645,0.89723922,3122.9,3121.4,0.61556543]
[1768896434841,0.89723922,3122.8,3121.3,0.16034]
[1768896435050,0.61859984,3122.7,3121.4,3.415]
[1768896435344,0.61859984,3122.7,3121.3,0.16034]
[1768896435345,0.61859984,3122.7,3121.3,6.78234]
[1768896435739,0.1603,3122.1,3120.3,3.21084497]
[1768896435941,1.76497264,3121.9,3120.3,0.00384497]
[1768896436147,0.61859984,3121.7,3120.3,0.00384497]
[1768896436343,0.61859984,3121.5,3120.3,0.00384497]
[1768896436542,0.61859984,3121.3,3120.3,0.00384497]
[1768896442448,0.61859984,3121.7,3120.3,0.00384497]
[1768896442746,0.89918787,3121.6,3120.3,0.00384497]
[1768896442947,0.89918787,3121.5,3120.3,0.00384497]
[1768896443147,0.89918787,3121.4,3120.3,0.00384497]
[1768896443444,0.61859984,3121.7,3120.3,0.00384497]
[1768896443645,0.89929157,3121.6,3120.3,0.00384497]
[1768896443840,0.89929157,3121.5,3120.3,0.00384497]
[1768896444045,0.61859984,3121.7,3120.3,0.00384497]
[1768896444246,0.89923659,3121.6,3120.3,0.00384497]
[1768896444446,0.89923659,3121.5,3120.3,0.00384497]
[1768896444650,0.61859984,3121.7,3120.3,0.00384497]
[1768896444851,0.89929263,3121.6,3120.3,0.00384497]
[1768896445050,0.89929263,3121.5,3120.3,0.00384497]
[1768896445243,0.61859984,3121.7,3120.3,0.00384497]
[1768896445446,0.89929189,3121.6,3120.3,0.00384497]
[1768896445646,0.89929189,3121.5,3120.3,0.00384497]
[1768896445850,0.89929189,3121.4,3120.3,0.00384497]
[1768896446053,0.61859984,3121.7,3120.3,0.00384497]
[1768896446349,0.89926575,3121.6,3120.3,0.00384497]
[1768896446551,0.89926575,3121.5,3120.3,0.00384497]
[1768896446752,0.61859984,3121.7,3120.3,0.00384497]
[1768896446953,0.89931063,3121.6,3120.3,0.00384497]
[1768896447155,0.61859984,3121.7,3120.3,0.00384497]
[1768896447354,0.89932195,3121.6,3120.3,0.00384497]
[1768896447554,0.61859984,3121.7,3120.3,0.00384497]
[1768896447756,0.89938897,3121.6,3120.3,0.00384497]
[1768896447957,0.61859984,3121.7,3120.3,0.00384497]
[1768896448253,0.89938829,3121.6,3120.3,0.00384497]
[1768896448454,0.61859984,3121.7,3120.3,0.00384497]
[1768896448760,0.89940144,3121.6,3120.3,0.00384497]
[1768896449060,0.61859984,3121.7,3120.3,0.00384497]
[1768896449262,0.8993516,3121.6,3120.3,0.00384497]
[1768896449452,0.61859984,3121.7,3120.3,0.00384497]
[1768896449653,0.89941221,3121.6,3120.3,0.00384497]
[1768896449855,0.61859984,3121.7,3120.3,0.00384497]
[1768896450156,0.89941344,3121.6,3120.3,0.00384497]
[1768896450354,0.61859984,3121.7,3120.3,0.00384497]
[1768896450655,0.89946458,3121.6,3120.3,0.00384497]
[1768896450954,0.61859984,3121.7,3120.3,0.00384497]
[1768896451154,0.89907083,3121.6,3120.3,0.00384497]
[1768896451358,0.61859984,3121.7,3120.3,0.00384497]
[1768896451562,0.89905825,3121.6,3120.3,0.00384497]
[1768896451863,0.61859984,3121.7,3120.3,0.00384497]
[1768896452063,0.89905605,3121.6,3120.3,0.00384497]
[1768896452264,0.61859984,3121.7,3120.3,0.00384497]
[1768896452464,0.89906113,3121.6,3120.3,3.21084497]
[1768896452759,0.61859984,3121.7,3120.3,3.21084497]
[1768896452961,0.9174747,3121.6,3120.3,3.21084497]
[1768896453155,0.9174747,3121.5,3120.3,3.21084497]
[1768896453362,0.61859984,3121.7,3120.3,3.21084497]
[1768896453555,0.9174876,3121.6,3120.3,3.21084497]
[1768896453756,0.9174876,3121.5,3120.3,3.21084497]
[1768896454055,0.61859984,3121.7,3120.3,3.21084497]
[1768896454256,0.91749044,3121.6,3120.3,3.21084497]
[1768896454456,0.91749044,3121.5,3120.3,3.21084497]
[1768896454655,0.61859984,3121.7,3120.3,3.21084497]
[1768896454855,0.91749378,3121.6,3120.3,3.21084497]
[1768896455063,0.61859984,3121.7,3120.3,3.21084497]
[1768896455064,0.91749378,3121.5,3120.3,3.21084497]
[1768896455264,0.47400264,3121.6,3120.3,3.21084497]
[1768896455464,0.91750853,3121.5,3120.3,3.21084497]
[1768896455764,0.47400264,3121.6,3120.3,3.21084497]
[1768896455956,0.9176673,3121.5,3120.3,3.21084497]
[1768896456156,0.47400264,3121.6,3120.3,3.21084497]
[1768896456356,0.91785168,3121.5,3120.3,3.21084497]
[1768896456555,0.47400264,3121.6,3120.3,3.21084497]
[1768896456763,0.9178664,3121.5,3120.3,3.21084497]
[1768896456968,0.47400264,3121.6,3120.3,3.21084497]
[1768896457168,0.91797671,3121.5,3120.3,3.21084497]
[1768896457465,0.47400264,3121.6,3120.3,3.21084497]
[1768896457666,0.9180171,3121.5,3120.3,3.21084497]
[1768896457867,0.47400264,3121.6,3120.3,3.21084497]
[1768896458165,0.91801957,3121.5,3120.3,3.21084497]
[1768896458368,0.47400264,3121.6,3120.3,3.21084497]
[1768896458562,0.91804488,3121.5,3120.3,3.21084497]
[1768896458763,1.1463728,3122.0,3120.4,0.16039]
[1768896458965,0.91810244,3121.9,3120.5,0.16038]
[1768896459163,0.91810244,3121.8,3120.5,0.16038]
[1768896459467,0.47400264,3122.1,3120.6,0.16038]
[1768896459669,0.91813861,3122.0,3120.6,0.16038]
[1768896459871,0.91813861,3121.9,3120.6,0.16038]
[1768896460166,0.47400264,3122.1,3120.6,0.16038]
[1768896460466,0.91816541,3122.0,3120.6,0.16038]
[1768896460668,0.91816541,3121.9,3120.6,0.16038]
[1768896460867,0.47400264,3122.1,3120.6,0.16038]
[1768896461067,0.91811223,3122.0,3120.7,0.16038]
[1768896461257,0.91811223,3121.9,3120.7,0.16038]
[1768896461460,0.47400264,3122.1,3120.7,0.16038]
[1768896461655,0.91808029,3122.0,3120.9,0.16036]
[1768896461868,1.62037544,3122.5,3121.0,3.391]
[1768896462175,0.91819731,3122.4,3121.0,3.391]
[1768896462365,0.91819731,3122.3,3121.0,3.391]
[1768896462668,0.47400264,3122.5,3121.0,3.55136]
[1768896462970,0.91816676,3122.4,3121.0,3.55136]
[1768896463163,0.47400264,3122.5,3121.0,3.55136]
[1768896463164,0.91816676,3122.3,3121.0,3.55136]
[1768896463363,0.47400264,3122.5,3121.0,3.55136]
[1768896463563,0.91818405,3122.4,3121.0,3.55136]
[1768896463765,0.91818405,3122.3,3121.0,3.55136]
[1768896463964,0.47400264,3122.5,3121.0,3.55136]
[1768896464164,0.91818424,3122.4,3121.0,3.55136]
[1768896464371,0.91818424,3122.3,3121.0,3.55136]
[1768896464676,0.0023486,3122.8,3121.4,0.16034]
[1768896464874,0.91855314,3122.7,3121.4,0.16034]
[1768896465169,0.91855314,3122.6,3121.5,3.207]
[1768896465368,0.0023486,3122.8,3121.5,3.207]
[1768896465569,0.0023486,3122.8,3121.5,3.36733]
[1768896466169,0.0023486,3122.8,3121.5,3.207]
[1768896466564,0.0023486,3122.8,3121.8,0.16032]